Workbook

Sheet Atkins
A1: Atkins Duplex Rent 2013
A3: Revenue
A4: Apartment | B4: Jan | C4: Feb | D4: Mar | E4: Apr | F4: May | G4: Jun | H4: Jul | I4: Aug | J4: Sep | K4: Oct | L4: Nov | M4: Dec
A5: 2055 | B5: 870 | C5: 870 | D5: 870 | E5: 870 | F5: 870 | G5: 870 | H5: 870 | I5: 870 | J5: 870 | K5: 870 | L5: 870 | M5: 870 | N5: =SUM(B5:M5) -> 10440
A6: 2057 | B6: 1020 | C6: 1020 | D6: 1020 | E6: 1020 | F6: 1020 | G6: 1020 | H6: 1020 | I6: 1020 | J6: 1020 | K6: 1020 | L6: 1020 | M6: 1020 | N6: =SUM(B6:M6) -> 12240
B7: =SUM(B6,B5) -> 1890 | C7: =SUM(C6,C5) -> 1890 | D7: 1890 | E7: 1890 | F7: 1890 | G7: 1890 | H7: 1890 | I7: 1890 | J7: 1890 | K7: 1890 | L7: 1890 | M7: 1890
L9: Gross Total | M9: =SUM(B7:M7) -> 22680
A12: Expenses
A13: Item | B13: 2012-01-01 | C13: 2012-02-02 | D13: 2012-03-03 | E13: 2012-04-04 | F13: 2012-05-05 | G13: 2012-06-06 | H13: 2012-07-07 | I13: 2012-08-08 | J13: 2012-09-09 | K13: 2012-10-10 | L13: 2012-11-11 | M13: 2012-12-12 | N13: Totals
A14: Cleaning and Maintenance | B14: 1 | N14: =SUM(B14:M14) -> 1
A15: Insurance | G15: 4 | H15: 3 | I15: 4 | M15: 234 | N15: 245
A16: Taxes | B16: 678 | F16: 4 | N16: 682
A17: Utilities CITY | I17: 3 | J17: 4 | L17: 4 | N17: 11
A18: Utilties Companies | B18: 90 | E18: 89 | F18: 53 | G18: 5 | N18: 237
A19: Wages/Salaries | E19: 56 | F19: 4 | H19: 43 | I19: 3 | J19: 78 | K19: 89 | L19: 34 | N19: 307
A20: Plumbing and electrical supplies | M20: 3 | N20: 3
A21: Supplies | G21: 23 | N21: 23
C22: =SUM(C14:C20) -> 0 | D22: 0 | E22: 145 | F22: 61 | G22: 9 | H22: 46 | I22: 10 | J22: 82 | K22: 89 | L22: 38 | M22: 237 | N22: 717
L24: Total Expense | M24: =SUM(B22:M22) -> 717

Sheet Downington
A1: Downington Duplex Rent 2013
A3: Revenue
A4: Apartment | B4: Jan | C4: Feb | D4: Mar | E4: Apr | F4: May | G4: Jun | H4: Jul | I4: Aug | J4: Sep | K4: Oct | L4: Nov | M4: Dec
A5: Front | B5: 800 | C5: 800 | D5: 800 | E5: 800 | F5: 800 | G5: 800 | H5: 800 | I5: 800 | J5: 800 | K5: 800 | L5: 800 | M5: 800 | N5: =SUM(B5:M5) -> 9600
A6: Back | B6: 1250 | C6: 1250 | D6: 1250 | E6: 1250 | F6: 1250 | G6: 1250 | H6: 1250 | I6: 1250 | J6: 1250 | K6: 1250 | L6: 1250 | M6: 1250 | N6: =SUM(B6:M6) -> 15000
B7: =SUM(B5,B6) -> 2050 | C7: =SUM(C5,C6) -> 2050 | D7: 2050 | E7: 2050 | F7: 2050 | G7: 2050 | H7: 2050 | I7: 2050 | J7: 2050 | K7: 2050 | L7: 2050 | M7: 2050
L9: Gross Total | M9: =SUM(B7:M7) -> 24600
A12: Expenses
A13: Item | B13: 2012-01-01 | C13: 2012-02-02 | D13: 2012-03-03 | E13: 2012-04-04 | F13: 2012-05-05 | G13: 2012-06-06 | H13: 2012-07-07 | I13: 2012-08-08 | J13: 2012-09-09 | K13: 2012-10-10 | L13: 2012-11-11 | M13: 2012-12-12 | N13: Totals
A14: Cleaning and Maintenance | B14: 123 | C14: 34 | I14: 291 | L14: 75 | N14: =SUM(B14:M14) -> 523
A15: Insurance | B15: 234 | I15: 443 | N15: 677
A16: Taxes | C16: 45 | D16: 42.97 | J16: 123.71 | K16: 195.86 | M16: 1935.73 | N16: 2343.27
A17: Utilities CITY | B17: 54 | I17: 28 | K17: 28 | M17: 30 | N17: 140
A18: Utilties Companies | B18: 34.72 | C18: 45 | E18: =3.78+10.7 -> 14.48 | N18: 94.2
A19: Wages/Salaries | C19: 34 | K19: 25 | N19: 59
A20: Plumbing and electrical supplies | B20: 34 | J20: 90 | N20: 124
A21: Supplies | K21: 154.19 | N21: 154.19
B22: 34.72 | C22: =SUM(C14:C20) -> 158 | D22: 42.97 | E22: 14.48 | F22: 0 | G22: 0 | H22: 0 | I22: 762 | J22: 213.71 | K22: 248.86 | L22: 75 | M22: 1965.73 | N22: 3515.47
L24: Total Expense | M24: =SUM(B22:M22) -> 3515.47

Sheet Holloywood
A1: Hollywood Duplex 2013
A3: Revenue
A4: Apartment | B4: Jan | C4: Feb | D4: Mar | E4: Apr | F4: May | G4: Jun | H4: Jul | I4: Aug | J4: Sep | K4: Oct | L4: Nov | M4: Dec
A5: 1905 | B5: 800 | C5: 800 | D5: 800 | E5: 800 | F5: 800 | G5: 800 | H5: 800 | I5: 800 | J5: 800 | K5: 800 | L5: 800 | M5: 800 | N5: =SUM(B5:M5) -> 9600
A6: 1907 | B6: 1250 | C6: 1250 | D6: 1250 | E6: 1250 | F6: 1250 | G6: 1250 | H6: 1250 | I6: 1250 | J6: 1250 | K6: 1250 | L6: 1250 | M6: 1250 | N6: =SUM(B6:M6) -> 15000
B7: =SUM(B5,B6) -> 2050 | C7: =SUM(C5,C6) -> 2050 | D7: 2050 | E7: 2050 | F7: 2050 | G7: 2050 | H7: 2050 | I7: 2050 | J7: 2050 | K7: 2050 | L7: 2050 | M7: 2050
L9: Gross Total | M9: =SUM(B7:M7) -> 24600
A12: Expenses
A13: Item | B13: 2012-01-01 | C13: 2012-02-02 | D13: 2012-03-03 | E13: 2012-04-04 | F13: 2012-05-05 | G13: 2012-06-06 | H13: 2012-07-07 | I13: 2012-08-08 | J13: 2012-09-09 | K13: 2012-10-10 | L13: 2012-11-11 | M13: 2012-12-12 | N13: Totals
A14: Cleaning and Maintenance | C14: 34 | I14: 291 | L14: 75 | N14: =SUM(B14:M14) -> 400
A15: Insurance | I15: 443 | N15: 443
A16: Taxes | C16: 45 | D16: 42.97 | J16: 123.71 | K16: 195.86 | M16: 1935.73 | N16: 2343.27
A17: Utilities CITY | I17: 28 | K17: 28 | M17: 30 | N17: 86
A18: Utilties Companies | B18: 34.72 | C18: 45 | E18: =3.78+10.7 -> 14.48 | N18: 94.2
A19: Wages/Salaries | C19: 34 | K19: 25 | N19: 59
A20: Plumbing and electrical supplies | J20: 90 | N20: 90
A21: Supplies | K21: 154.19 | N21: 154.19
B22: 34.72 | C22: =SUM(C14:C20) -> 158 | D22: 42.97 | E22: 14.48 | F22: 0 | G22: 0 | H22: 0 | I22: 762 | J22: 213.71 | K22: 248.86 | L22: 75 | M22: 1965.73 | N22: 3515.47
L24: Total Expense | M24: =SUM(B22:M22) -> 3515.47

Sheet Total
A1: Totals 2013
A2: Apartment
A3: Atkins | B3: =Atkins!M9 -> 22680
A4: Downington | B4: =Downington!M9 -> 24600
A5: Hollywood | B5: =Holloywood!M9 -> 24600
B6: =SUM(B5,B4,B3) -> 71880
A12: Item
A13: Cleaning and Maintenance | B13: =Atkins!N14+Downington!N14+Holloywood!N14 -> 924
A14: Insurance | B14: =Atkins!N15+Downington!N15+Holloywood!N15 -> 1365
A15: Taxes | B15: =Atkins!N16+Downington!N16+Holloywood!N16 -> 5368.54
A16: Utilities CITY | B16: =Atkins!N17+Downington!N17+Holloywood!N17 -> 237
A17: Utilties Companies | B17: =Atkins!N18+Downington!N18+Holloywood!N18 -> 425.4
A18: Wages/Salaries | B18: =Atkins!N19+Downington!N19+Holloywood!N19 -> 425
A19: Plumbing and electrical supplies | B19: =Atkins!N20+Downington!N20+Holloywood!N20 -> 217
A20: Supplies | B20: =Atkins!N21+Downington!N21+Holloywood!N21 -> 331.38
B21: =SUM(B13:B20) -> 9293.32
A27: Net Income | B27: =B6-B21 -> 62586.68
